Workbook

Sheet Ръководство
B2: ЛИЧЕН ПАРИЧЕН ПОТОК
B3: Тази работна книга има работни листове за годишен, месечен и дневен паричен поток. Изберете типа паричен поток, който ви върши най-добра работа, или ги използвайте всички, за да получавате представа за своя личен паричен поток.
B5: Дневен паричен поток | E5: Месечен паричен поток | H5: Годишно паричен поток
B7: Въведете очакваната сума на паричния поток, който имате всеки ден, и прегледайте очакваните месечни и годишни общи суми. Използвайте това, за да разберете как биха изглеждали вашите ежедневни навици в харченето в рамките на месец или година. | E7: Въведете месечния паричен поток, който имате ежемесечно, или направете преценка за оставащите месеци, за да видите предвидения паричен поток за годината по месеци. | H7: Въведете годишна сума на паричния поток в четири работни листа: Приходи, разходи, допълнителни разходи и спестявания. Вижте месечна разбивка и сравнение на всичко и най-важното – какво са крайните резултати при годишните и месечни сметки.

Sheet Дневен паричен поток
B1: ЛИЧЕН ПАРИЧЕН ПОТОК
C2: Общо налични парични средства: | D2: =ДневенПариченПоток -> 577.84 лв. | F2: ЗАБЕЛЕЖКА: Ако искате да добавите ежедневни артикули в таблицата, направете преценка на месечната сума/стойност и поставете тази стойността в съответната колона за месеца.
B4: ДНЕВНО РЕЗЮМЕ
B5: Общи суми | C5: Ежедневно | D5: Месечно | E5: Годишно
B6: Приход | C6: =SUMIF(Дневно[Тип],$B6,Дневно[Дневно]) -> 342.47 лв. | D6: =SUMIF(Дневно[Тип],$B6,Дневно[Месечно]) -> 10,416.80 лв. | E6: =SUMIF(Дневно[Тип],$B6,Дневно[Годишно]) -> 125,001.55 лв.
B7: Разходи | C7: =SUMIF(Дневно[Тип],$B7,Дневно[Дневно]) -> 136.06 лв. | D7: =SUMIF(Дневно[Тип],$B7,Дневно[Месечно]) -> 4,138.49 лв. | E7: =SUMIF(Дневно[Тип],$B7,Дневно[Годишно]) -> 49,661.90 лв.
B8: Допълнителни | C8: =SUMIF(Дневно[Тип],$B8,Дневно[Дневно]) -> 36.29 лв. | D8: =SUMIF(Дневно[Тип],$B8,Дневно[Месечно]) -> 1,103.82 лв. | E8: =SUMIF(Дневно[Тип],$B8,Дневно[Годишно]) -> 13,245.85 лв.
B9: Спестявания | C9: =SUMIF(Дневно[Тип],$B9,Дневно[Дневно]) -> 63.02 лв. | D9: =SUMIF(Дневно[Тип],$B9,Дневно[Месечно]) -> 1,916.86 лв. | E9: =SUMIF(Дневно[Тип],$B9,Дневно[Годишно]) -> 23,002.30 лв.
B11: Тип | C11: Описание | D11: Дневно | E11: Месечно | F11: Годишно
B12: Приход | C12: Заплата | D12: 246.58 лв. | E12: =Дневно[[#This Row],[Годишно]]/12 -> 7,500.14 лв. | F12: =Дневно[[#This Row],[Дневно]]*365 -> 90,001.70 лв.
B13: Приход | C13: Комисиони/бонуси | D13: 13.70 лв. | E13: =Дневно[[#This Row],[Годишно]]/12 -> 416.71 лв. | F13: =Дневно[[#This Row],[Дневно]]*365 -> 5,000.50 лв.
B14: Приход | C14: Други 1 | D14: 82.19 лв. | E14: =Дневно[[#This Row],[Годишно]]/12 -> 2,499.95 лв. | F14: =Дневно[[#This Row],[Дневно]]*365 -> 29,999.35 лв.
B15: Приход | C15: Други 2 | D15: 0.00 лв. | E15: =Дневно[[#This Row],[Годишно]]/12 -> 0.00 лв. | F15: =Дневно[[#This Row],[Дневно]]*365 -> 0.00 лв.
B16: Приход | C16: Други 3 | D16: 0.00 лв. | E16: =Дневно[[#This Row],[Годишно]]/12 -> 0.00 лв. | F16: =Дневно[[#This Row],[Дневно]]*365 -> 0.00 лв.
B17: Приход | C17: Други 4 | D17: 0.00 лв. | E17: =Дневно[[#This Row],[Годишно]]/12 -> 0.00 лв. | F17: =Дневно[[#This Row],[Дневно]]*365 -> 0.00 лв.
B18: Разходи | C18: Държавни/общински/медицински | D18: 41.10 лв. | E18: =Дневно[[#This Row],[Годишно]]/12 -> 1,250.13 лв. | F18: =Дневно[[#This Row],[Дневно]]*365 -> 15,001.50 лв.
B19: Разходи | C19: Данък общ доход | D19: 6.85 лв. | E19: =Дневно[[#This Row],[Годишно]]/12 -> 208.35 лв. | F19: =Дневно[[#This Row],[Дневно]]*365 -> 2,500.25 лв.
B20: Разходи | C20: Данъци/такси за автомобил | D20: 0.55 лв. | E20: =Дневно[[#This Row],[Годишно]]/12 -> 16.73 лв. | F20: =Дневно[[#This Row],[Дневно]]*365 -> 200.75 лв.
B21: Разходи | C21: Плащания за автомобил | D21: 10.96 лв. | E21: =Дневно[[#This Row],[Годишно]]/12 -> 333.37 лв. | F21: =Дневно[[#This Row],[Дневно]]*365 -> 4,000.40 лв.
B22: Разходи | C22: Ипотека/наем | D22: 41.10 лв. | E22: =Дневно[[#This Row],[Годишно]]/12 -> 1,250.13 лв. | F22: =Дневно[[#This Row],[Дневно]]*365 -> 15,001.50 лв.
B23: Разходи | C23: Застраховка | D23: 0.68 лв. | E23: =Дневно[[#This Row],[Годишно]]/12 -> 20.68 лв. | F23: =Дневно[[#This Row],[Дневно]]*365 -> 248.20 лв.
B24: Разходи | C24: Електричество | D24: 3.29 лв. | E24: =Дневно[[#This Row],[Годишно]]/12 -> 100.07 лв. | F24: =Дневно[[#This Row],[Дневно]]*365 -> 1,200.85 лв.
B25: Разходи | C25: Газ | D25: 1.64 лв. | E25: =Дневно[[#This Row],[Годишно]]/12 -> 49.88 лв. | F25: =Дневно[[#This Row],[Дневно]]*365 -> 598.60 лв.
B26: Разходи | C26: Вода | D26: 1.64 лв. | E26: =Дневно[[#This Row],[Годишно]]/12 -> 49.88 лв. | F26: =Дневно[[#This Row],[Дневно]]*365 -> 598.60 лв.
B27: Разходи | C27: Канализация | D27: 0.82 лв. | E27: =Дневно[[#This Row],[Годишно]]/12 -> 24.94 лв. | F27: =Дневно[[#This Row],[Дневно]]*365 -> 299.30 лв.
B28: Разходи | C28: Боклук | D28: 0.41 лв. | E28: =Дневно[[#This Row],[Годишно]]/12 -> 12.47 лв. | F28: =Дневно[[#This Row],[Дневно]]*365 -> 149.65 лв.
B29: Разходи | C29: Телефон | D29: 1.64 лв. | E29: =Дневно[[#This Row],[Годишно]]/12 -> 49.88 лв. | F29: =Дневно[[#This Row],[Дневно]]*365 -> 598.60 лв.
B30: Разходи | C30: Интернет | D30: 1.64 лв. | E30: =Дневно[[#This Row],[Годишно]]/12 -> 49.88 лв. | F30: =Дневно[[#This Row],[Дневно]]*365 -> 598.60 лв.
B31: Разходи | C31: Вноски за застраховка за увреждания | D31: 4.11 лв. | E31: =Дневно[[#This Row],[Годишно]]/12 -> 125.01 лв. | F31: =Дневно[[#This Row],[Дневно]]*365 -> 1,500.15 лв.
B32: Разходи | C32: Храна | D32: 13.70 лв. | E32: =Дневно[[#This Row],[Годишно]]/12 -> 416.71 лв. | F32: =Дневно[[#This Row],[Дневно]]*365 -> 5,000.50 лв.
B33: Разходи | C33: Облекло | D33: 3.29 лв. | E33: =Дневно[[#This Row],[Годишно]]/12 -> 100.07 лв. | F33: =Дневно[[#This Row],[Дневно]]*365 -> 1,200.85 лв.
B34: Разходи | C34: Медицински/Стоматологични | D34: 1.64 лв. | E34: =Дневно[[#This Row],[Годишно]]/12 -> 49.88 лв. | F34: =Дневно[[#This Row],[Дневно]]*365 -> 598.60 лв.
B35: Разходи | C35: Автобус | D35: 1.00 лв. | E35: =Дневно[[#This Row],[Годишно]]/12 -> 30.42 лв. | F35: =Дневно[[#This Row],[Дневно]]*365 -> 365.00 лв.
B36: Разходи | C36: Други 2 | D36: 0.00 лв. | E36: =Дневно[[#This Row],[Годишно]]/12 -> 0.00 лв. | F36: =Дневно[[#This Row],[Дневно]]*365 -> 0.00 лв.
B37: Разходи | C37: Други 3 | D37: 0.00 лв. | E37: =Дневно[[#This Row],[Годишно]]/12 -> 0.00 лв. | F37: =Дневно[[#This Row],[Дневно]]*365 -> 0.00 лв.
B38: Разходи | C38: Други 4 | D38: 0.00 лв. | E38: =Дневно[[#This Row],[Годишно]]/12 -> 0.00 лв. | F38: =Дневно[[#This Row],[Дневно]]*365 -> 0.00 лв.
B39: Допълнителни | C39: Заведения | D39: 3.29 лв. | E39: =Дневно[[#This Row],[Годишно]]/12 -> 100.07 лв. | F39: =Дневно[[#This Row],[Дневно]]*365 -> 1,200.85 лв.
B40: Допълнителни | C40: Подаръци | D40: 1.64 лв. | E40: =Дневно[[#This Row],[Годишно]]/12 -> 49.88 лв. | F40: =Дневно[[#This Row],[Дневно]]*365 -> 598.60 лв.
B41: Допълнителни | C41: Командировки | D41: 6.16 лв. | E41: =Дневно[[#This Row],[Годишно]]/12 -> 187.37 лв. | F41: =Дневно[[#This Row],[Дневно]]*365 -> 2,248.40 лв.
B42: Допълнителни | C42: Развлечения | D42: 3.29 лв. | E42: =Дневно[[#This Row],[Годишно]]/12 -> 100.07 лв. | F42: =Дневно[[#This Row],[Дневно]]*365 -> 1,200.85 лв.
B43: Допълнителни | C43: Хигиенни материали | D43: 0.82 лв. | E43: =Дневно[[#This Row],[Годишно]]/12 -> 24.94 лв. | F43: =Дневно[[#This Row],[Дневно]]*365 -> 299.30 лв.
B44: Допълнителни | C44: Пазаруване | D44: 5.48 лв. | E44: =Дневно[[#This Row],[Годишно]]/12 -> 166.68 лв. | F44: =Дневно[[#This Row],[Дневно]]*365 -> 2,000.20 лв.
B45: Допълнителни | C45: Благотворителност | D45: 1.64 лв. | E45: =Дневно[[#This Row],[Годишно]]/12 -> 49.88 лв. | F45: =Дневно[[#This Row],[Дневно]]*365 -> 598.60 лв.
B46: Допълнителни | C46: Клуб/членство | D46: 0.82 лв. | E46: =Дневно[[#This Row],[Годишно]]/12 -> 24.94 лв. | F46: =Дневно[[#This Row],[Дневно]]*365 -> 299.30 лв.
B47: Допълнителни | C47: Подобрения на дома | D47: 13.15 лв. | E47: =Дневно[[#This Row],[Годишно]]/12 -> 399.98 лв. | F47: =Дневно[[#This Row],[Дневно]]*365 -> 4,799.75 лв.
B48: Допълнителни | C48: Други 1 | D48: 0.00 лв. | E48: =Дневно[[#This Row],[Годишно]]/12 -> 0.00 лв. | F48: =Дневно[[#This Row],[Дневно]]*365 -> 0.00 лв.
B49: Допълнителни | C49: Други 2 | D49: 0.00 лв. | E49: =Дневно[[#This Row],[Годишно]]/12 -> 0.00 лв. | F49: =Дневно[[#This Row],[Дневно]]*365 -> 0.00 лв.
B50: Спестявания | C50: Парични запаси | D50: 13.70 лв. | E50: =Дневно[[#This Row],[Годишно]]/12 -> 416.71 лв. | F50: =Дневно[[#This Row],[Дневно]]*365 -> 5,000.50 лв.
B51: Спестявания | C51: Пенсионни фондове | D51: 32.88 лв. | E51: =Дневно[[#This Row],[Годишно]]/12 -> 1,000.10 лв. | F51: =Дневно[[#This Row],[Дневно]]*365 -> 12,001.20 лв.
B52: Спестявания | C52: Спестовна сметка | D52: 16.44 лв. | E52: =Дневно[[#This Row],[Годишно]]/12 -> 500.05 лв. | F52: =Дневно[[#This Row],[Дневно]]*365 -> 6,000.60 лв.
B53: Спестявания | C53: Други 1 | D53: 0.00 лв. | E53: =Дневно[[#This Row],[Годишно]]/12 -> 0.00 лв. | F53: =Дневно[[#This Row],[Дневно]]*365 -> 0.00 лв.
B54: Спестявания | C54: Други 2 | D54: 0.00 лв. | E54: =Дневно[[#This Row],[Годишно]]/12 -> 0.00 лв. | F54: =Дневно[[#This Row],[Дневно]]*365 -> 0.00 лв.
B55: Общо | D55: =SUMIF(Дневно[Тип],"Приход",Дневно[Дневно])-SUMIF(Дневно[Тип],"<>Приход",Дневно[Дневно]) -> 107.10 лв. | E55: =SUMIF(Дневно[Тип],"Приход",Дневно[Месечно])-SUMIF(Дневно[Тип],"<>Приход",Дневно[Месечно]) -> 3,257.63 лв. | F55: =SUMIF(Дневно[Тип],"Приход",Дневно[Годишно])-SUMIF(Дневно[Тип],"<>Приход",Дневно[Годишно]) -> 39,091.50 лв.

Sheet Месечен паричен поток
B1: ЛИЧЕН ПАРИЧЕН ПОТОК
C2: Общ месечен паричен поток: | D2: =МесеченПариченПотокКъмМомента -> 18,380.00 лв. | F2: ЗАБЕЛЕЖКА: За ежедневните артикули направете преценка на месечната сума/стойност и поставете тази стойността в съответната колона за месеца.
B4: Тип | C4: Описание | D4: Янр | E4: Фев | F4: Мар | G4: Апр | H4: Май | I4: Юни | J4: Юли | K4: Авг | L4: Сеп | M4: Окт | N4: Ное | O4: Дек | P4: Общо
B5: Приход | C5: Заплата | D5: 7,500.00 лв. | E5: 7,500.00 лв. | F5: 7,500.00 лв. | G5: 7,500.00 лв. | H5: 7,500.00 лв. | I5: 7,500.00 лв. | P5: =SUM(Месечно[[#This Row],[Янр]:[Дек]]) -> 45,000.00 лв.
B6: Приход | C6: Комисиони/бонуси | D6: 400.00 лв. | E6: 400.00 лв. | F6: 500.00 лв. | G6: 200.00 лв. | H6: 0.00 лв. | I6: 600.00 лв. | P6: =SUM(Месечно[[#This Row],[Янр]:[Дек]]) -> 2,100.00 лв.
B7: Приход | C7: Други 1 | D7: 2,500.00 лв. | E7: 2,500.00 лв. | F7: 2,500.00 лв. | G7: 2,500.00 лв. | H7: 2,500.00 лв. | I7: 2,500.00 лв. | P7: =SUM(Месечно[[#This Row],[Янр]:[Дек]]) -> 15,000.00 лв.
B8: Приход | C8: Други 2 | D8: 0.00 лв. | E8: 0.00 лв. | F8: 0.00 лв. | G8: 0.00 лв. | H8: 0.00 лв. | I8: 0.00 лв. | P8: =SUM(Месечно[[#This Row],[Янр]:[Дек]]) -> 0.00 лв.
B9: Приход | C9: Други 3 | D9: 0.00 лв. | E9: 0.00 лв. | F9: 0.00 лв. | G9: 0.00 лв. | H9: 0.00 лв. | I9: 0.00 лв. | P9: =SUM(Месечно[[#This Row],[Янр]:[Дек]]) -> 0.00 лв.
B10: Приход | C10: Други 4 | D10: 0.00 лв. | E10: 0.00 лв. | F10: 0.00 лв. | G10: 0.00 лв. | H10: 0.00 лв. | I10: 0.00 лв. | P10: =SUM(Месечно[[#This Row],[Янр]:[Дек]]) -> 0.00 лв.
B11: Разходи | C11: Държавни/общински/медицински | D11: 1,250.00 лв. | E11: 1,250.00 лв. | F11: 1,250.00 лв. | G11: 1,250.00 лв. | H11: 1,250.00 лв. | I11: 1,250.00 лв. | P11: =SUM(Месечно[[#This Row],[Янр]:[Дек]]) -> 7,500.00 лв.
B12: Разходи | C12: Данък общ доход | D12: 208.33 лв. | E12: 208.33 лв. | F12: 208.33 лв. | G12: 208.33 лв. | H12: 208.33 лв. | I12: 208.33 лв. | P12: =SUM(Месечно[[#This Row],[Янр]:[Дек]]) -> 1,250.00 лв.
B13: Разходи | C13: Данъци/такси за автомобил | D13: 16.67 лв. | E13: 16.67 лв. | F13: 16.67 лв. | G13: 16.67 лв. | H13: 16.67 лв. | I13: 16.67 лв. | P13: =SUM(Месечно[[#This Row],[Янр]:[Дек]]) -> 100.00 лв.
B14: Разходи | C14: Плащания за автомобил | D14: 333.33 лв. | E14: 333.33 лв. | F14: 333.33 лв. | G14: 333.33 лв. | H14: 333.33 лв. | I14: 333.33 лв. | P14: =SUM(Месечно[[#This Row],[Янр]:[Дек]]) -> 2,000.00 лв.
B15: Разходи | C15: Ипотека/наем | D15: 1,250.00 лв. | E15: 1,250.00 лв. | F15: 1,250.00 лв. | G15: 1,250.00 лв. | H15: 1,250.00 лв. | I15: 1,250.00 лв. | P15: =SUM(Месечно[[#This Row],[Янр]:[Дек]]) -> 7,500.00 лв.
B16: Разходи | C16: Застраховка | D16: 25.00 лв. | E16: 25.00 лв. | F16: 25.00 лв. | G16: 25.00 лв. | H16: 25.00 лв. | I16: 25.00 лв. | P16: =SUM(Месечно[[#This Row],[Янр]:[Дек]]) -> 150.00 лв.
B17: Разходи | C17: Електричество | D17: 100.00 лв. | E17: 100.00 лв. | F17: 100.00 лв. | G17: 100.00 лв. | H17: 100.00 лв. | I17: 100.00 лв. | P17: =SUM(Месечно[[#This Row],[Янр]:[Дек]]) -> 600.00 лв.
B18: Разходи | C18: Газ | D18: 50.00 лв. | E18: 50.00 лв. | F18: 50.00 лв. | G18: 50.00 лв. | H18: 50.00 лв. | I18: 50.00 лв. | P18: =SUM(Месечно[[#This Row],[Янр]:[Дек]]) -> 300.00 лв.
B19: Разходи | C19: Вода | D19: 50.00 лв. | E19: 50.00 лв. | F19: 50.00 лв. | G19: 50.00 лв. | H19: 50.00 лв. | I19: 50.00 лв. | P19: =SUM(Месечно[[#This Row],[Янр]:[Дек]]) -> 300.00 лв.
B20: Разходи | C20: Канализация | D20: 25.00 лв. | E20: 25.00 лв. | F20: 25.00 лв. | G20: 25.00 лв. | H20: 25.00 лв. | I20: 25.00 лв. | P20: =SUM(Месечно[[#This Row],[Янр]:[Дек]]) -> 150.00 лв.
B21: Разходи | C21: Боклук | D21: 12.50 лв. | E21: 12.50 лв. | F21: 12.50 лв. | G21: 12.50 лв. | H21: 12.50 лв. | I21: 12.50 лв. | P21: =SUM(Месечно[[#This Row],[Янр]:[Дек]]) -> 75.00 лв.
B22: Разходи | C22: Телефон | D22: 50.00 лв. | E22: 50.00 лв. | F22: 50.00 лв. | G22: 50.00 лв. | H22: 50.00 лв. | I22: 50.00 лв. | P22: =SUM(Месечно[[#This Row],[Янр]:[Дек]]) -> 300.00 лв.
B23: Разходи | C23: Интернет | D23: 50.00 лв. | E23: 50.00 лв. | F23: 50.00 лв. | G23: 50.00 лв. | H23: 50.00 лв. | I23: 50.00 лв. | P23: =SUM(Месечно[[#This Row],[Янр]:[Дек]]) -> 300.00 лв.
B24: Разходи | C24: Вноски за застраховка за увреждания | D24: 125.00 лв. | E24: 125.00 лв. | F24: 125.00 лв. | G24: 125.00 лв. | H24: 125.00 лв. | I24: 125.00 лв. | P24: =SUM(Месечно[[#This Row],[Янр]:[Дек]]) -> 750.00 лв.
B25: Разходи | C25: Храна | D25: 400.00 лв. | E25: 500.00 лв. | F25: 450.00 лв. | G25: 400.00 лв. | H25: 450.00 лв. | I25: 425.00 лв. | P25: =SUM(Месечно[[#This Row],[Янр]:[Дек]]) -> 2,625.00 лв.
B26: Разходи | C26: Облекло | D26: 50.00 лв. | E26: 75.00 лв. | F26: 100.00 лв. | G26: 75.00 лв. | H26: 125.00 лв. | I26: 75.00 лв. | P26: =SUM(Месечно[[#This Row],[Янр]:[Дек]]) -> 500.00 лв.
B27: Разходи | C27: Медицински/Стоматологични | D27: 50.00 лв. | E27: 10.00 лв. | F27: 25.00 лв. | G27: 25.00 лв. | H27: 20.00 лв. | I27: 70.00 лв. | P27: =SUM(Месечно[[#This Row],[Янр]:[Дек]]) -> 200.00 лв.
B28: Разходи | C28: Автобус | D28: 30.00 лв. | E28: 30.00 лв. | F28: 30.00 лв. | G28: 20.00 лв. | H28: 30.00 лв. | I28: 30.00 лв. | P28: =SUM(Месечно[[#This Row],[Янр]:[Дек]]) -> 170.00 лв.
B29: Разходи | C29: Други 2 | D29: 0.00 лв. | E29: 0.00 лв. | F29: 0.00 лв. | G29: 0.00 лв. | H29: 0.00 лв. | I29: 0.00 лв. | P29: =SUM(Месечно[[#This Row],[Янр]:[Дек]]) -> 0.00 лв.
B30: Разходи | C30: Други 3 | D30: 0.00 лв. | E30: 0.00 лв. | F30: 0.00 лв. | G30: 0.00 лв. | H30: 0.00 лв. | I30: 0.00 лв. | P30: =SUM(Месечно[[#This Row],[Янр]:[Дек]]) -> 0.00 лв.
B31: Разходи | C31: Други 4 | D31: 0.00 лв. | E31: 0.00 лв. | F31: 0.00 лв. | G31: 0.00 лв. | H31: 0.00 лв. | I31: 0.00 лв. | P31: =SUM(Месечно[[#This Row],[Янр]:[Дек]]) -> 0.00 лв.
B32: Допълнителни | C32: Заведения | D32: 50.00 лв. | E32: 150.00 лв. | F32: 100.00 лв. | G32: 50.00 лв. | H32: 150.00 лв. | I32: 100.00 лв. | P32: =SUM(Месечно[[#This Row],[Янр]:[Дек]]) -> 600.00 лв.
B33: Допълнителни | C33: Подаръци | D33: 25.00 лв. | E33: 75.00 лв. | F33: 50.00 лв. | G33: 25.00 лв. | H33: 75.00 лв. | I33: 50.00 лв. | P33: =SUM(Месечно[[#This Row],[Янр]:[Дек]]) -> 300.00 лв.
B34: Допълнителни | C34: Командировки | D34: 0.00 лв. | E34: 0.00 лв. | F34: 1,000.00 лв. | G34: 0.00 лв. | H34: 0.00 лв. | I34: 1,000.00 лв. | P34: =SUM(Месечно[[#This Row],[Янр]:[Дек]]) -> 2,000.00 лв.
B35: Допълнителни | C35: Развлечения | D35: 50.00 лв. | E35: 150.00 лв. | F35: 100.00 лв. | G35: 50.00 лв. | H35: 150.00 лв. | I35: 100.00 лв. | P35: =SUM(Месечно[[#This Row],[Янр]:[Дек]]) -> 600.00 лв.
B36: Допълнителни | C36: Хигиенни материали | D36: 15.00 лв. | E36: 25.00 лв. | F36: 35.00 лв. | G36: 15.00 лв. | H36: 25.00 лв. | I36: 35.00 лв. | P36: =SUM(Месечно[[#This Row],[Янр]:[Дек]]) -> 150.00 лв.
B37: Допълнителни | C37: Пазаруване | D37: 100.00 лв. | E37: 200.00 лв. | F37: 150.00 лв. | G37: 175.00 лв. | H37: 150.00 лв. | I37: 175.00 лв. | P37: =SUM(Месечно[[#This Row],[Янр]:[Дек]]) -> 950.00 лв.
B38: Допълнителни | C38: Благотворителност | D38: 50.00 лв. | E38: 50.00 лв. | F38: 50.00 лв. | G38: 50.00 лв. | H38: 50.00 лв. | I38: 50.00 лв. | P38: =SUM(Месечно[[#This Row],[Янр]:[Дек]]) -> 300.00 лв.
B39: Допълнителни | C39: Клуб/членство | D39: 25.00 лв. | E39: 25.00 лв. | F39: 25.00 лв. | G39: 25.00 лв. | H39: 25.00 лв. | I39: 25.00 лв. | P39: =SUM(Месечно[[#This Row],[Янр]:[Дек]]) -> 150.00 лв.
B40: Допълнителни | C40: Подобрения на дома | D40: 400.00 лв. | E40: 400.00 лв. | F40: 400.00 лв. | G40: 400.00 лв. | H40: 400.00 лв. | I40: 400.00 лв. | P40: =SUM(Месечно[[#This Row],[Янр]:[Дек]]) -> 2,400.00 лв.
B41: Допълнителни | C41: Други 1 | D41: 0.00 лв. | E41: 0.00 лв. | F41: 0.00 лв. | G41: 0.00 лв. | H41: 0.00 лв. | I41: 0.00 лв. | P41: =SUM(Месечно[[#This Row],[Янр]:[Дек]]) -> 0.00 лв.
B42: Допълнителни | C42: Други 2 | D42: 0.00 лв. | E42: 0.00 лв. | F42: 0.00 лв. | G42: 0.00 лв. | H42: 0.00 лв. | I42: 0.00 лв. | P42: =SUM(Месечно[[#This Row],[Янр]:[Дек]]) -> 0.00 лв.
B43: Спестявания | C43: Парични запаси | D43: 416.67 лв. | E43: 416.67 лв. | F43: 416.67 лв. | G43: 416.67 лв. | H43: 416.67 лв. | I43: 416.67 лв. | P43: =SUM(Месечно[[#This Row],[Янр]:[Дек]]) -> 2,500.00 лв.
B44: Спестявания | C44: Пенсионни фондове | D44: 1,000.00 лв. | E44: 1,000.00 лв. | F44: 1,000.00 лв. | G44: 1,000.00 лв. | H44: 1,000.00 лв. | I44: 1,000.00 лв. | P44: =SUM(Месечно[[#This Row],[Янр]:[Дек]]) -> 6,000.00 лв.
B45: Спестявания | C45: Спестовна сметка | D45: 500.00 лв. | E45: 500.00 лв. | F45: 500.00 лв. | G45: 500.00 лв. | H45: 500.00 лв. | I45: 500.00 лв. | P45: =SUM(Месечно[[#This Row],[Янр]:[Дек]]) -> 3,000.00 лв.
B46: Спестявания | C46: Други 1 | D46: 0.00 лв. | E46: 0.00 лв. | F46: 0.00 лв. | G46: 0.00 лв. | H46: 0.00 лв. | I46: 0.00 лв. | P46: =SUM(Месечно[[#This Row],[Янр]:[Дек]]) -> 0.00 лв.
B47: Спестявания | C47: Други 2 | D47: 0.00 лв. | E47: 0.00 лв. | F47: 0.00 лв. | G47: 0.00 лв. | H47: 0.00 лв. | I47: 0.00 лв. | P47: =SUM(Месечно[[#This Row],[Янр]:[Дек]]) -> 0.00 лв.
B48: Общо | D48: =SUMIF(Месечно[Тип],"Приход",Месечно[Янр])-SUMIF(Месечно[Тип],"<>Приход",Месечно[Янр]) -> 3,692.50 лв. | E48: =SUMIF(Месечно[Тип],"Приход",Месечно[Фев])-SUMIF(Месечно[Тип],"<>Приход",Месечно[Фев]) -> 3,247.50 лв. | F48: =SUMIF(Месечно[Тип],"Приход",Месечно[Мар])-SUMIF(Месечно[Тип],"<>Приход",Месечно[Мар]) -> 2,522.50 лв. | G48: =SUMIF(Месечно[Тип],"Приход",Месечно[Апр])-SUMIF(Месечно[Тип],"<>Приход",Месечно[Апр]) -> 3,427.50 лв. | H48: =SUMIF(Месечно[Тип],"Приход",Месечно[Май])-SUMIF(Месечно[Тип],"<>Приход",Месечно[Май]) -> 2,887.50 лв. | I48: =SUMIF(Месечно[Тип],"Приход",Месечно[Юни])-SUMIF(Месечно[Тип],"<>Приход",Месечно[Юни]) -> 2,602.50 лв. | J48: =SUMIF(Месечно[Тип],"Приход",Месечно[Юли])-SUMIF(Месечно[Тип],"<>Приход",Месечно[Юли]) -> 0.00 лв. | K48: =SUMIF(Месечно[Тип],"Приход",Месечно[Авг])-SUMIF(Месечно[Тип],"<>Приход",Месечно[Авг]) -> 0.00 лв. | L48: =SUMIF(Месечно[Тип],"Приход",Месечно[Сеп])-SUMIF(Месечно[Тип],"<>Приход",Месечно[Сеп]) -> 0.00 лв. | M48: =SUMIF(Месечно[Тип],"Приход",Месечно[Окт])-SUMIF(Месечно[Тип],"<>Приход",Месечно[Окт]) -> 0.00 лв. | N48: =SUMIF(Месечно[Тип],"Приход",Месечно[Ное])-SUMIF(Месечно[Тип],"<>Приход",Месечно[Ное]) -> 0.00 лв. | O48: =SUMIF(Месечно[Тип],"Приход",Месечно[Дек])-SUMIF(Месечно[Тип],"<>Приход",Месечно[Дек]) -> 0.00 лв. | P48: =SUMIF(Месечно[Тип],"Приход",Месечно[Общо])-SUMIF(Месечно[Тип],"<>Приход",Месечно[Общо]) -> 18,380.00 лв.

Sheet Годишно паричен поток
B1: ЛИЧЕН ПАРИЧЕН ПОТОК
C2: Общ паричен поток към днешна дата: | D2: =ГодишенПариченПотокКъмМомента -> 42,250.00 лв. | G2: Това е годишна оценка. Използвайте този работен лист, ако искате да видите годишни суми с очакваните месечни стойности. Използвайте работните листове "Приходи", "Разходи", "Допълнителни" и "Спестявания", за да въвеждате елементи.
B4: РЕЗЮМЕ НА ПРИХОДИТЕ | F4: РЕЗЮМЕ НА РАЗХОДИТЕ | J4: РЕЗЮМЕ НА ДОПЪЛНИТЕЛНИТЕ РАЗХОДИ | N4: РЕЗЮМЕ НА СПЕСТЯВАНИЯТА
B5: Общо за годината: | C5: =Приход!C11 -> 125,000.00 лв. | F5: Общо за годината: | G5: =Разходи[[#Totals],[Годишно ]] -> 46,500.00 лв. | J5: Общо за годината: | K5: =Допълнителни[[#Totals],[Годишно ]] -> 13,250.00 лв. | N5: Общо за годината: | O5: =Спестявания[[#Totals],[Годишно ]] -> 23,000.00 лв.
B8: Общо за месеца: | C8: =Приход!D11 -> 10,416.67 лв. | F8: Общо за месеца: | G8: =Разходи[[#Totals],[Месечно ]] -> 3,875.00 лв. | J8: Общо за месеца: | K8: =Допълнителни[[#Totals],[Месечно ]] -> 1,104.17 лв. | N8: Общо за месеца: | O8: =Спестявания!D10 -> 1,916.67 лв.
R10: Етикети на редове | S10: Годишен приход | U10: Етикети на редове | V10: Сума от Годишно | X10: Етикети на редове | Y10: Сума от Годишно | AA10: Етикети на редове | AB10: Сума от Годишно
R11: Други 3 | S11: 0 лв. | U11: Други 2 | V11: 0 лв. | X11: Други 2 | Y11: 0 лв. | AA11: Други 1 | AB11: 0 лв.
R12: Други 4 | S12: 0 лв. | U12: Други 1 | V12: 0 лв. | X12: Други 1 | Y12: 0 лв. | AA12: Други 2 | AB12: 0 лв.
R13: Други 2 | S13: 0 лв. | U13: Боклук | V13: 150 лв. | X13: Клуб/членство | Y13: 300 лв. | AA13: Парични запаси | AB13: 5,000 лв.
R14: Комисиони/бонуси | S14: 5,000 лв. | U14: Данъци/такси за автомобил | V14: 200 лв. | X14: Хигиенни материали | Y14: 300 лв. | AA14: Спестявания/инвестиции | AB14: 6,000 лв.
R15: Други 1 | S15: 30,000 лв. | U15: Застраховка | V15: 250 лв. | X15: Благотворителност | Y15: 600 лв. | AA15: Пенсионен фонд | AB15: 12,000 лв.
R16: Заплата | S16: 90,000 лв. | U16: Газ | V16: 600 лв. | X16: Подаръци | Y16: 600 лв. | AA16: Обща сума | AB16: 23,000 лв.
R17: Обща сума | S17: 125,000 лв. | U17: Вода/канализация | V17: 600 лв. | X17: Заведения | Y17: 1,200 лв.
U18: Интернет | V18: 600 лв. | X18: Развлечения | Y18: 1,200 лв.
U19: Телефон | V19: 600 лв. | X19: Пазаруване | Y19: 2,000 лв.
U20: Медицински/Стоматологични | V20: 600 лв. | X20: Командировки | Y20: 2,250 лв.
U21: Електричество | V21: 1,200 лв. | X21: Подобрения на дома | Y21: 4,800 лв.
U22: Облекло | V22: 1,200 лв. | X22: Обща сума | Y22: 13,250 лв.
U23: Вноски за застраховка за увреждания | V23: 1,500 лв.
U24: Данък общ доход | V24: 2,500 лв.
U25: Плащания за автомобил | V25: 4,000 лв.
U26: Храна | V26: 5,000 лв.
U27: Държавни/общински/медицински | V27: 12,500 лв.
U28: Ипотека/наем | V28: 15,000 лв.
U29: Обща сума | V29: 46,500 лв.

Sheet Приход
B1: ЛИЧЕН ПАРИЧЕН ПОТОК
C2: Общ паричен поток към днешна дата: | D2: =ГодишенПариченПотокКъмМомента -> 42,250.00 лв. | F2: Това е годишна оценка. Използвайте този работен лист, ако искате да видите годишни суми с очакваните месечни стойности. Ако искате да добавите ежедневни артикули в таблицата, направете преценка на годишната сума/стойност и поставете тази стойността в колона за годината.
B4: Приход | C4: Годишно | D4: Месечно
B5: Заплата | C5: 90,000.00 лв. | D5: =Приход[[#This Row],[Годишно ]]/12 -> 7,500.00 лв.
B6: Комисиони/бонуси | C6: 5,000.00 лв. | D6: =Приход[[#This Row],[Годишно ]]/12 -> 416.67 лв.
B7: Други 1 | C7: 30,000.00 лв. | D7: =Приход[[#This Row],[Годишно ]]/12 -> 2,500.00 лв.
B8: Други 2 | C8: 0.00 лв. | D8: =Приход[[#This Row],[Годишно ]]/12 -> 0.00 лв.
B9: Други 3 | C9: 0.00 лв. | D9: =Приход[[#This Row],[Годишно ]]/12 -> 0.00 лв.
B10: Други 4 | C10: 0.00 лв. | D10: =Приход[[#This Row],[Годишно ]]/12 -> 0.00 лв.
B11: Общо | C11: =SUBTOTAL(109,Приход[[Годишно ]]) -> 125,000.00 лв. | D11: =SUBTOTAL(109,Приход[[Месечно ]]) -> 10,416.67 лв.

Sheet Разходи
B1: ЛИЧЕН ПАРИЧЕН ПОТОК
C2: Общ паричен поток към днешна дата: | D2: =ГодишенПариченПотокКъмМомента -> 42,250.00 лв. | F2: Това е годишна оценка. Използвайте този работен лист, ако искате да видите годишни суми с очакваните месечни стойности. Ако искате да добавите ежедневни артикули в таблицата, направете преценка на годишната сума/стойност и поставете тази стойността в колона за годината.
B4: Разходи | C4: Годишно | D4: Месечно
B5: Държавни/общински/медицински | C5: 12,500.00 лв. | D5: =Разходи[[#This Row],[Годишно ]]/12 -> 1,041.67 лв.
B6: Данък общ доход | C6: 2,500.00 лв. | D6: =Разходи[[#This Row],[Годишно ]]/12 -> 208.33 лв.
B7: Данъци/такси за автомобил | C7: 200.00 лв. | D7: =Разходи[[#This Row],[Годишно ]]/12 -> 16.67 лв.
B8: Плащания за автомобил | C8: 4,000.00 лв. | D8: =Разходи[[#This Row],[Годишно ]]/12 -> 333.33 лв.
B9: Ипотека/наем | C9: 15,000.00 лв. | D9: =Разходи[[#This Row],[Годишно ]]/12 -> 1,250.00 лв.
B10: Застраховка | C10: 250.00 лв. | D10: =Разходи[[#This Row],[Годишно ]]/12 -> 20.83 лв.
B11: Електричество | C11: 1,200.00 лв. | D11: =Разходи[[#This Row],[Годишно ]]/12 -> 100.00 лв.
B12: Газ | C12: 600.00 лв. | D12: =Разходи[[#This Row],[Годишно ]]/12 -> 50.00 лв.
B13: Вода/канализация | C13: 600.00 лв. | D13: =Разходи[[#This Row],[Годишно ]]/12 -> 50.00 лв.
B14: Боклук | C14: 150.00 лв. | D14: =Разходи[[#This Row],[Годишно ]]/12 -> 12.50 лв.
B15: Телефон | C15: 600.00 лв. | D15: =Разходи[[#This Row],[Годишно ]]/12 -> 50.00 лв.
B16: Интернет | C16: 600.00 лв. | D16: =Разходи[[#This Row],[Годишно ]]/12 -> 50.00 лв.
B17: Вноски за застраховка за увреждания | C17: 1,500.00 лв. | D17: =Разходи[[#This Row],[Годишно ]]/12 -> 125.00 лв.
B18: Храна | C18: 5,000.00 лв. | D18: =Разходи[[#This Row],[Годишно ]]/12 -> 416.67 лв.
B19: Облекло | C19: 1,200.00 лв. | D19: =Разходи[[#This Row],[Годишно ]]/12 -> 100.00 лв.
B20: Медицински/Стоматологични | C20: 600.00 лв. | D20: =Разходи[[#This Row],[Годишно ]]/12 -> 50.00 лв.
B21: Други 1 | C21: 0.00 лв. | D21: =Разходи[[#This Row],[Годишно ]]/12 -> 0.00 лв.
B22: Други 2 | C22: 0.00 лв. | D22: =Разходи[[#This Row],[Годишно ]]/12 -> 0.00 лв.
B23: Общо | C23: =SUBTOTAL(109,Разходи[[Годишно ]]) -> 46,500.00 лв. | D23: =SUBTOTAL(109,Разходи[[Месечно ]]) -> 3,875.00 лв.

Sheet Допълнителни
B1: ЛИЧЕН ПАРИЧЕН ПОТОК
C2: Общ паричен поток към днешна дата: | D2: =ГодишенПариченПотокКъмМомента -> 42,250.00 лв. | F2: Това е годишна оценка. Използвайте този работен лист, ако искате да видите годишни суми с очакваните месечни стойности. Ако искате да добавите ежедневни артикули в таблицата, направете преценка на годишната сума/стойност и поставете тази стойността в колона за годината.
B4: Разходи | C4: Годишно | D4: Месечно
B5: Заведения | C5: 1,200.00 лв. | D5: =Допълнителни[[#This Row],[Годишно ]]/12 -> 100.00 лв.
B6: Подаръци | C6: 600.00 лв. | D6: =Допълнителни[[#This Row],[Годишно ]]/12 -> 50.00 лв.
B7: Командировки | C7: 2,250.00 лв. | D7: =Допълнителни[[#This Row],[Годишно ]]/12 -> 187.50 лв.
B8: Развлечения | C8: 1,200.00 лв. | D8: =Допълнителни[[#This Row],[Годишно ]]/12 -> 100.00 лв.
B9: Хигиенни материали | C9: 300.00 лв. | D9: =Допълнителни[[#This Row],[Годишно ]]/12 -> 25.00 лв.
B10: Пазаруване | C10: 2,000.00 лв. | D10: =Допълнителни[[#This Row],[Годишно ]]/12 -> 166.67 лв.
B11: Благотворителност | C11: 600.00 лв. | D11: =Допълнителни[[#This Row],[Годишно ]]/12 -> 50.00 лв.
B12: Клуб/членство | C12: 300.00 лв. | D12: =Допълнителни[[#This Row],[Годишно ]]/12 -> 25.00 лв.
B13: Подобрения на дома | C13: 4,800.00 лв. | D13: =Допълнителни[[#This Row],[Годишно ]]/12 -> 400.00 лв.
B14: Други 1 | C14: 0.00 лв. | D14: =Допълнителни[[#This Row],[Годишно ]]/12 -> 0.00 лв.
B15: Други 2 | C15: 0.00 лв. | D15: =Допълнителни[[#This Row],[Годишно ]]/12 -> 0.00 лв.
B16: Общо | C16: =SUBTOTAL(109,Допълнителни[[Годишно ]]) -> 13,250.00 лв. | D16: =SUBTOTAL(109,Допълнителни[[Месечно ]]) -> 1,104.17 лв.

Sheet Спестявания
B1: ЛИЧЕН ПАРИЧЕН ПОТОК
C2: Общ паричен поток към днешна дата: | D2: =ГодишенПариченПотокКъмМомента -> 42,250.00 лв. | F2: Това е годишна оценка. Използвайте този работен лист, ако искате да видите годишни суми с очакваните месечни стойности. Ако искате да добавите ежедневни артикули в таблицата, направете преценка на годишната сума/стойност и поставете тази стойността в колона за годината.
B4: Спестявания | C4: Годишно | D4: Месечно
B5: Парични запаси | C5: 5,000.00 лв. | D5: =Спестявания[[#This Row],[Годишно ]]/12 -> 416.67 лв.
B6: Пенсионен фонд | C6: 12,000.00 лв. | D6: =Спестявания[[#This Row],[Годишно ]]/12 -> 1,000.00 лв.
B7: Спестявания/инвестиции | C7: 6,000.00 лв. | D7: =Спестявания[[#This Row],[Годишно ]]/12 -> 500.00 лв.
B8: Други 1 | C8: 0.00 лв. | D8: =Спестявания[[#This Row],[Годишно ]]/12 -> 0.00 лв.
B9: Други 2 | C9: 0.00 лв. | D9: =Спестявания[[#This Row],[Годишно ]]/12 -> 0.00 лв.
B10: Общо | C10: =SUBTOTAL(109,Спестявания[[Годишно ]]) -> 23,000.00 лв. | D10: =SUBTOTAL(109,Спестявания[[Месечно ]]) -> 1,916.67 лв.
